[Event "Sambir Charity 2024"]
[Site "Sambir"]
[Date "2024.09.22"]
[Round "9.2"]
[White "Lozynskyi, Bohdan"]
[Black "Bondarenko, Stanislav"]
[Result "1-0"]
[ECO "C00"]
[WhiteElo "2069"]
[BlackElo "1780"]
[PlyCount "159"]
[EventDate "2024.09.10"]
[EventType "swiss"]
[EventCountry "UKR"]
[TimeControl "5400+30"]

1. e4 {[%emt 1:20:51]} e6 {[%emt 1:20:53]} 2. d3 {[%emt 0:00:28]} d5 {[%emt 0:00:28]} 3. Qe2 {[%emt 0:00:26]} dxe4 {[%emt 0:00:27]} 4. dxe4 {[%emt 0:00:26]} c5 {[%emt 0:00:27]} 5. Nf3 {[%emt 0:00:29]} Nc6 {[%emt 0:00:26]} 6. c3 {[%emt 0:00:27]} Be7 {[%emt 0:00:31]} 7. Qc2 {[%emt 0:00:27]} Nf6 {[%emt 0:00:30]} 8. h3 {[%emt 0:00:32]} Qc7 {[%emt 0:00:34]} 9. Be3 {[%emt 0:00:29]} b6 {[%emt 0:00:30]} 10. a4 {[%emt 0:00:37]} Bb7 {[%emt 0:00:35]} 11. Nbd2 {[%emt 0:00:28]} O-O {[%emt 0:00:33]} 12. Be2 {[%emt 0:00:36]} Rad8 {[%emt 0:00:46]} 13. O-O {[%emt 0:00:28]} Bd6 {[%emt 0:00:57]} 14. Bg5 {[%emt 0:00:42]} Be7 {[%emt 0:00:34]} 15. Rfe1 {[%emt 0:00:35]} Nd7 {[%emt 0:00:30]} 16. Be3 {[%emt 0:00:41]} Bd6 {[%emt 0:00:39]} 17. Bg5 {[%emt 0:01:52]} Be7 {[%emt 0:00:26]} 18. Be3 {[%emt 0:00:26]} Bd6 {[%emt 0:00:26]} 19. Nc4 {[%emt 0:00:37]} Bf4 {[%emt 0:00:33]} 20. Qc1 {[%emt 0:00:56]} Bxe3 {[%emt 0:00:28]} 21. Qxe3 {[%emt 0:00:26]} Ba6 {[%emt 0:01:03]} 22. e5 {[%emt 0:00:48]} Bxc4 {[%emt 0:00:44]} 23. Bxc4 {[%emt 0:00:26]} Na5 {[%emt 0:00:36]} 24. Bd3 {[%emt 0:00:50]} c4 {[%emt 0:00:27]} 25. Bc2 {[%emt 0:00:33]} Rfe8 {[%emt 0:00:47]} 26. Ng5 {[%emt 0:01:07]} Nf8 {[%emt 0:00:37]} 27. Qe4 {[%emt 0:00:28]} h6 {[%emt 0:00:28]} 28. Nf3 {[%emt 0:00:32]} Qc6 {[%emt 0:02:10]} 29. Qg4 {[%emt 0:00:42]} Qc5 {[%emt 0:01:23]} 30. h4 {[%emt 0:01:19]} Nc6 {[%emt 0:00:37]} 31. h5 {[%emt 0:00:28]} Rd5 {[%emt 0:00:33]} 32. Qf4 {[%emt 0:00:36]} Red8 {[%emt 0:00:56]} 33. Re4 {[%emt 0:00:58]} Na5 {[%emt 0:00:53]} 34. Qg3 {[%emt 0:00:47]} Qe7 {[%emt 0:00:52]} 35. Nd4 {[%emt 0:00:33]} Qg5 {[%emt 0:00:52]} 36. Qxg5 {[%emt 0:00:59]} hxg5 {[%emt 0:00:26]} 37. Nf3 {[%emt 0:00:26]} f5 {[%emt 0:00:38]} 38. exf6 {[%emt 0:00:37]} gxf6 {[%emt 0:00:26]} 39. Rae1 {[%emt 0:00:45]} e5 {[%emt 0:00:35]} 40. R4e2 {[%emt 0:00:54]} Ne6 {[%emt 0:00:30]} 41. g3 {[%emt 0:00:33]} Nc5 {[%emt 0:00:31]} 42. Nh2 {[%emt 0:01:02]} Nd3 {[%emt 0:00:42]} 43. Rb1 {[%emt 0:01:13]} Nb3 {[%emt 0:01:17]} 44. Ng4 {[%emt 0:00:33]} Kf7 {[%emt 0:00:35]} 45. Ne3 {[%emt 0:00:35]} Nbc1 {[%emt 0:00:28]} 46. Rd2 {[%emt 0:00:38]} R5d7 {[%emt 0:01:00]} 47. Nxc4 {[%emt 0:00:29]} e4 {[%emt 0:00:34]} 48. Kf1 {[%emt 0:00:34]} Ke6 {[%emt 0:00:30]} 49. Rd1 {[%emt 0:00:35]} Rh8 {[%emt 0:00:39]} 50. Rbxc1 {[%emt 0:00:37]} Nxc1 {[%emt 0:00:26]} 51. Rxc1 {[%emt 0:00:25]} Rxh5 {[%emt 0:00:28]} 52. Bxe4 {[%emt 0:00:44]} f5 {[%emt 0:00:31]} 53. Bf3 {[%emt 0:00:30]} g4 {[%emt 0:00:26]} 54. Bg2 {[%emt 0:00:26]} Kf6 {[%emt 0:00:32]} 55. Ke2 {[%emt 0:00:28]} Rh2 {[%emt 0:00:32]} 56. Ne3 {[%emt 0:00:25]} Re7 {[%emt 0:00:35]} 57. Bd5 {[%emt 0:00:29]} f4 {[%emt 0:00:34]} 58. gxf4 {[%emt 0:00:26]} g3 {[%emt 0:00:25]} 59. Rf1 {[%emt 0:00:39]} gxf2 {[%emt 0:01:20]} 60. Rxf2 {[%emt 0:00:26]} Rh3 {[%emt 0:00:26]} 61. Rf3 {[%emt 0:00:26]} Rh2+ {[%emt 0:00:27]} 62. Kd3 {[%emt 0:00:26]} Rxb2 {[%emt 0:00:29]} 63. Be4 {[%emt 0:00:28]} Rd7+ {[%emt 0:00:33]} 64. Nd5+ {[%emt 0:00:31]} Ke6 {[%emt 0:00:30]} 65. c4 {[%emt 0:00:30]} Rb3+ {[%emt 0:00:28]} 66. Kd4 {[%emt 0:00:26]} Rxf3 {[%emt 0:00:32]} 67. Bxf3 {[%emt 0:00:26]} Kf5 {[%emt 0:00:25]} 68. Be4+ {[%emt 0:00:32]} Ke6 {[%emt 0:00:36]} 69. f5+ {[%emt 0:00:26]} Kd6 {[%emt 0:00:25]} 70. f6 {[%emt 0:00:25]} Ke6 {[%emt 0:00:46]} 71. Bg6 {[%emt 0:00:32]} Rd8 {[%emt 0:00:37]} 72. Bh5 {[%emt 0:00:30]} a6 {[%emt 0:00:29]} 73. Bg4+ {[%emt 0:00:26]} Kf7 {[%emt 0:00:25]} 74. Ke5 {[%emt 0:00:28]} b5 {[%emt 0:00:28]} 75. Be6+ {[%emt 0:00:26]} Kf8 {[%emt 0:00:26]} 76. axb5 {[%emt 0:00:27]} axb5 {[%emt 0:00:26]} 77. cxb5 {[%emt 0:00:27]} Rb8 {[%emt 0:00:29]} 78. b6 {[%emt 0:00:27]} Rb7 {[%emt 0:00:56]} 79. Nf4 {[%emt 0:00:27]} Ke8 {[%emt 0:00:55]} 80. f7+ {[%emt 0:00:26]} 1-0

[Event "Sambir Charity 2024"]
[Site "Sambir"]
[Date "2024.09.22"]
[Round "9.3"]
[White "Mikhaletz, Lubomir"]
[Black "Baziuk, Vladyslav"]
[Result "0-1"]
[ECO "A01"]
[WhiteElo "2272"]
[BlackElo "2247"]
[PlyCount "124"]
[EventDate "2024.09.10"]
[EventType "swiss"]
[EventCountry "UKR"]
[TimeControl "5400+30"]

1. b3 {[%emt 1:20:51]} d5 {[%emt 1:21:16]} 2. Bb2 {[%emt 0:00:26]} Nf6 {[%emt 0:00:29]} 3. e3 {[%emt 0:00:28]} Bf5 {[%emt 0:00:33]} 4. Nf3 {[%emt 0:00:48]} e6 {[%emt 0:00:54]} 5. Nh4 {[%emt 0:01:05]} Bg6 {[%emt 0:00:30]} 6. g3 {[%emt 0:00:49]} Be7 {[%emt 0:00:36]} 7. d3 {[%emt 0:00:37]} Nbd7 {[%emt 0:00:39]} 8. Nd2 {[%emt 0:01:08]} O-O {[%emt 0:01:04]} 9. Nxg6 {[%emt 0:00:44]} hxg6 {[%emt 0:00:27]} 10. Bg2 {[%emt 0:00:33]} a5 {[%emt 0:00:32]} 11. a4 {[%emt 0:00:36]} c6 {[%emt 0:00:30]} 12. e4 {[%emt 0:00:38]} dxe4 {[%emt 0:00:49]} 13. dxe4 {[%emt 0:00:31]} Qc7 {[%emt 0:01:25]} 14. O-O {[%emt 0:00:27]} e5 {[%emt 0:00:29]} 15. Nc4 {[%emt 0:00:38]} Bc5 {[%emt 0:00:47]} 16. Qe2 {[%emt 0:00:40]} b6 {[%emt 0:00:33]} 17. Rfd1 {[%emt 0:00:44]} Rfe8 {[%emt 0:00:53]} 18. Bh3 {[%emt 0:00:40]} Nf8 {[%emt 0:00:39]} 19. Rd3 {[%emt 0:00:38]} N8h7 {[%emt 0:01:48]} 20. Rad1 {[%emt 0:00:29]} Ng5 {[%emt 0:00:39]} 21. Bg2 {[%emt 0:00:26]} b5 {[%emt 0:00:29]} 22. axb5 {[%emt 0:01:11]} cxb5 {[%emt 0:00:35]} 23. Nd6 {[%emt 0:00:44]} Bxd6 {[%emt 0:00:36]} 24. Rxd6 {[%emt 0:00:26]} a4 {[%emt 0:00:28]} 25. h4 {[%emt 0:00:41]} Ngh7 {[%emt 0:00:38]} 26. bxa4 {[%emt 0:01:46]} bxa4 {[%emt 0:00:30]} 27. Qd3 {[%emt 0:00:36]} g5 {[%emt 0:00:53]} 28. h5 {[%emt 0:00:45]} Nxh5 {[%emt 0:02:09]} 29. Rd7 {[%emt 0:00:36]} Qc6 {[%emt 0:00:27]} 30. Qd5 {[%emt 0:00:47]} Qxd5 {[%emt 0:00:29]} 31. exd5 {[%emt 0:00:27]} a3 {[%emt 0:00:41]} 32. d6 {[%emt 0:01:07]} axb2 {[%emt 0:01:07]} 33. Bxa8 {[%emt 0:00:40]} Rxa8 {[%emt 0:00:27]} 34. Rb7 {[%emt 0:00:52]} Ra1 {[%emt 0:00:28]} 35. Rf1 {[%emt 0:00:28]} Nf8 {[%emt 0:01:22]} 36. Rxb2 {[%emt 0:00:28]} Ra6 {[%emt 0:00:29]} 37. Rd1 {[%emt 0:00:47]} Nf6 {[%emt 0:00:27]} 38. Rb8 {[%emt 0:00:46]} N6d7 {[%emt 0:00:48]} 39. Rc8 {[%emt 0:00:35]} Ra5 {[%emt 0:00:27]} 40. Rb1 {[%emt 0:00:35]} Rd5 {[%emt 0:00:58]} 41. Rc6 {[%emt 0:00:40]} Ne6 {[%emt 0:00:47]} 42. Rb7 {[%emt 0:01:42]} Ndc5 {[%emt 0:00:30]} 43. Rbc7 {[%emt 0:00:39]} Rd2 {[%emt 0:00:33]} 44. Rxc5 {[%emt 0:00:32]} Nxc5 {[%emt 0:00:27]} 45. Rxc5 {[%emt 0:00:26]} Rxd6 {[%emt 0:00:27]} 46. Rxe5 {[%emt 0:00:26]} Rc6 {[%emt 0:00:26]} 47. Re2 {[%emt 0:00:27]} f6 {[%emt 0:00:32]} 48. Kf1 {[%emt 0:00:29]} Kf7 {[%emt 0:00:31]} 49. Ke1 {[%emt 0:00:27]} Rd6 {[%emt 0:00:37]} 50. Rd2 {[%emt 0:00:31]} Rc6 {[%emt 0:00:28]} 51. Re2 {[%emt 0:00:32]} Rd6 {[%emt 0:00:25]} 52. Re3 {[%emt 0:00:26]} f5 {[%emt 0:00:29]} 53. Ke2 {[%emt 0:00:37]} Kf6 {[%emt 0:00:28]} 54. Rd3 {[%emt 0:00:39]} Rc6 {[%emt 0:00:31]} 55. Kd2 {[%emt 0:00:30]} Ke5 {[%emt 0:00:27]} 56. Re3+ {[%emt 0:00:28]} Kd4 {[%emt 0:00:32]} 57. Re7 {[%emt 0:00:27]} g6 {[%emt 0:00:27]} 58. Re8 {[%emt 0:00:41]} g4 {[%emt 0:00:36]} 59. Re3 {[%emt 0:00:38]} g5 {[%emt 0:00:37]} 60. Re8 {[%emt 0:00:27]} f4 {[%emt 0:00:30]} 61. Rf8 {[%emt 0:00:36]} Ke4 {[%emt 0:00:27]} 62. c3 {[%emt 0:00:47]} Ra6 {[%emt 0:00:34]} 0-1

[Event "Sambir Charity 2024"]
[Site "Sambir"]
[Date "2024.09.22"]
[Round "9.4"]
[White "Karvatskyi, Oleksii"]
[Black "Stoyko, Oleh"]
[Result "1-0"]
[ECO "B13"]
[WhiteElo "2144"]
[BlackElo "1792"]
[PlyCount "127"]
[EventDate "2024.09.10"]
[EventType "swiss"]
[EventCountry "UKR"]
[TimeControl "5400+30"]

1. e4 {[%emt 1:20:51]} c6 {[%emt 1:20:55]} 2. d4 {[%emt 0:00:26]} d5 {[%emt 0:00:26]} 3. exd5 {[%emt 0:00:26]} cxd5 {[%emt 0:00:25]} 4. Bd3 {[%emt 0:00:27]} Nc6 {[%emt 0:00:27]} 5. c3 {[%emt 0:00:29]} Nf6 {[%emt 0:00:28]} 6. h3 {[%emt 0:00:27]} g6 {[%emt 0:00:27]} 7. Nf3 {[%emt 0:00:33]} Bg7 {[%emt 0:00:26]} 8. O-O {[%emt 0:00:29]} O-O {[%emt 0:00:27]} 9. Bf4 {[%emt 0:00:30]} Bf5 {[%emt 0:00:34]} 10. Bxf5 {[%emt 0:00:37]} gxf5 {[%emt 0:00:27]} 11. Re1 {[%emt 0:00:31]} e6 {[%emt 0:00:43]} 12. Qc1 {[%emt 0:00:37]} Ne4 {[%emt 0:00:37]} 13. Bh6 {[%emt 0:00:32]} Bxh6 {[%emt 0:00:27]} 14. Qxh6 {[%emt 0:00:26]} Qf6 {[%emt 0:00:30]} 15. Qf4 {[%emt 0:00:28]} Ne7 {[%emt 0:00:45]} 16. Nbd2 {[%emt 0:00:35]} Ng6 {[%emt 0:01:21]} 17. Qe3 {[%emt 0:01:10]} Rac8 {[%emt 0:01:03]} 18. Rac1 {[%emt 0:00:48]} Kh8 {[%emt 0:00:38]} 19. c4 {[%emt 0:00:57]} Nxd2 {[%emt 0:00:41]} 20. Nxd2 {[%emt 0:00:30]} dxc4 {[%emt 0:00:29]} 21. Nxc4 {[%emt 0:00:26]} Rfd8 {[%emt 0:00:34]} 22. Ne5 {[%emt 0:01:02]} Kg7 {[%emt 0:01:34]} 23. Red1 {[%emt 0:01:44]} a6 {[%emt 0:01:15]} 24. Nf3 {[%emt 0:00:39]} Ne7 {[%emt 0:00:46]} 25. Qb3 {[%emt 0:00:37]} b5 {[%emt 0:00:41]} 26. Qa3 {[%emt 0:00:32]} Nd5 {[%emt 0:01:20]} 27. Rxc8 {[%emt 0:01:46]} Rxc8 {[%emt 0:00:27]} 28. Qxa6 {[%emt 0:00:26]} Qd8 {[%emt 0:01:13]} 29. Qxb5 {[%emt 0:00:33]} Rb8 {[%emt 0:00:31]} 30. Qe2 {[%emt 0:00:27]} Qb6 {[%emt 0:00:40]} 31. Rd2 {[%emt 0:00:33]} Rc8 {[%emt 0:00:31]} 32. Rc2 {[%emt 0:00:32]} Ra8 {[%emt 0:01:22]} 33. b3 {[%emt 0:01:04]} Qb4 {[%emt 0:00:57]} 34. Qe5+ {[%emt 0:00:55]} Kg8 {[%emt 0:00:37]} 35. Qg3+ {[%emt 0:00:29]} Kh8 {[%emt 0:01:36]} 36. Ne5 {[%emt 0:00:47]} Qe7 {[%emt 0:00:55]} 37. a4 {[%emt 0:00:45]} f4 {[%emt 0:00:26]} 38. Qf3 {[%emt 0:00:38]} f6 {[%emt 0:00:34]} 39. Nd3 {[%emt 0:00:33]} Qd6 {[%emt 0:00:33]} 40. Qe4 {[%emt 0:01:06]} Rb8 {[%emt 0:00:38]} 41. Nc5 {[%emt 0:00:45]} e5 {[%emt 0:00:44]} 42. dxe5 {[%emt 0:00:36]} fxe5 {[%emt 0:00:31]} 43. Nd3 {[%emt 0:00:58]} Re8 {[%emt 0:00:41]} 44. Qf5 {[%emt 0:01:24]} e4 {[%emt 0:00:30]} 45. Rc8 {[%emt 0:00:34]} Rxc8 {[%emt 0:00:39]} 46. Qxc8+ {[%emt 0:00:26]} Kg7 {[%emt 0:00:26]} 47. Qc5 {[%emt 0:00:31]} Qe6 {[%emt 0:00:46]} 48. Qd4+ {[%emt 0:00:28]} Kf7 {[%emt 0:00:31]} 49. Nc5 {[%emt 0:00:38]} Qf5 {[%emt 0:00:27]} 50. Qxe4 {[%emt 0:00:31]} Qxe4 {[%emt 0:00:27]} 51. Nxe4 {[%emt 0:00:27]} Nb4 {[%emt 0:00:27]} 52. Kf1 {[%emt 0:00:29]} Ke6 {[%emt 0:00:29]} 53. Ng5+ {[%emt 0:00:29]} Kd5 {[%emt 0:00:25]} 54. Nxh7 {[%emt 0:00:26]} Kd4 {[%emt 0:00:26]} 55. Ke2 {[%emt 0:00:31]} Kc3 {[%emt 0:00:26]} 56. Nf6 {[%emt 0:00:40]} Kxb3 {[%emt 0:00:28]} 57. Nh5 {[%emt 0:00:27]} Nd5 {[%emt 0:00:31]} 58. Kf3 {[%emt 0:00:26]} Kxa4 59. Nxf4 {[%emt 0:00:27]} Ne7 {[%emt 0:00:54]} 60. h4 {[%emt 0:00:29]} Kb4 {[%emt 0:00:26]} 61. g4 {[%emt 0:00:28]} Kc4 {[%emt 0:00:26]} 62. Ke4 {[%emt 0:00:27]} Kc5 {[%emt 0:00:28]} 63. Ke5 {[%emt 0:00:28]} Kc6 {[%emt 0:00:26]} 64. Ke6 {[%emt 0:00:30]} 1-0